Cogmind - Beta 13 @@@ ROGUE MODE // 2024.04.01 @ 18:38:00 Player: Olafz Result: Destroyed by Y-45 Defender with Heavy Assault Rifle Performance ------------- Evolutions (2) 1000 Regions Visited (4) 800 Robots Destroyed (19) 95 Value Destroyed (579) 579 Prototype IDs (0) 0 Alien Tech Used (0) 0 Bonus (0) 0 TOTAL SCORE: 2474 Bonus ------- None Cogmind --------- Core Integrity 0/550 Matter 261/300 Energy 40/100 System Corruption 3% Temperature Cool (64) Movement Core (100) Ox1 Location -8/Materials Parts ------- > --- POWER (1) -------- (None) > --- PROPULSION (3) --- (None) > --- UTILITY (5) ------ Visual Processing Unit Advanced Visual Processing Unit Melee Analysis Suite > --- WEAPON (2) ------- Minigun Minigun > --- INVENTORY (5) ---- (None) Peak State ------------ > --- POWER ------------ Light Deuterium Engine > --- PROPULSION ------- (None) > --- UTILITY ---------- Advanced Weight Redist. System Visual Processing Unit Advanced Visual Processing Unit Signal Interpreter Melee Analysis Suite > --- WEAPON ----------- Flail > --- INVENTORY -------- (None) [Rating: 17] Favorites ----------- Power Light Ion Engine Engine Light Ion Engine Propulsion Flight Unit Leg Aluminum Leg Flight Unit Flight Unit Utility Signal Interpreter Device Advanced Weight Redist. System Storage Small Storage Unit Processor Signal Interpreter Weapon Welding Torch Energy Gun Small Laser Ballistic Gun Light Assault Rifle Special Weapon Welding Torch Impact Weapon Flail Build | -11 -10 -10 -9 -8 ------- Run | Yrd Mat Min Mat Mat Slots Evolved 4 | . . . 2 2 Power . | . . . . . Propulsion 1 | . . . 1 . Utility 3 | . . . 1 2 Weapon . | . . . . . Parts Attached 26 | 5 8 . 3 10 Power 7 | 1 3 . 1 2 Engine 7 | 1 3 . 1 2 Core . | . . . . . Reactor . | . . . . . Propulsion 5 | 2 2 . . 1 Treads . | . . . . . Leg 2 | 2 . . . . Wheel . | . . . . . Hover . | . . . . . Flight 3 | . 2 . . 1 Utility 7 | 1 1 . 1 4 Device 1 | . . . . 1 Storage 1 | 1 . . . . Processor 5 | . 1 . 1 3 Hackware . | . . . . . Protection . | . . . . . Artifact . | . . . . . Weapon 7 | 1 2 . 1 3 Energy Gun 1 | . 1 . . . Energy Cannon . | . . . . . Ballistic Gun 3 | 1 . . . 2 Ballistic Cannon . | . . . . . Launcher . | . . . . . Special Weapon 1 | . 1 . . . Impact Weapon 2 | . . . 1 1 Slashing Weapon . | . . . . . Piercing Weapon . | . . . . . Special Melee Weapon . | . . . . . Unidentified Prototypes . | . . . . . Parts Lost 9 | . 2 . 1 6 Power 2 | . 1 . . 1 Propulsion 3 | . 1 . 1 1 Utility 2 | . . . . 2 Weapon 2 | . . . . 2 Highest Loss Streak 4 | . 2 . 1 4 To Critical Strikes . | . . . . . Average Slot Usage (%) 66 | . 74 85 62 51 Engine 9 | . 12 14 11 2 Leg 4 | . 10 . . . Flight 14 | . 16 28 17 4 Storage 2 | . 6 . . . Processor 14 | . 6 14 12 28 Ballistic Gun 7 | . 14 14 1 . Special Weapon 7 | . 7 14 11 3 Impact Weapon 4 | . . . 9 8 Naked Turns . | . . . . . Heaviest Build 11 | 9 11 5 6 8 Greatest Support 20 | 20 20 8 8 12 Greatest Overweight (x) 2 | 2 2 . 1 1 Average Overweight (x) . | . . . . . Largest Inventory Capacity 8 | 8 8 5 5 5 Average Capacity 5 | 7 6 5 5 5 Most Carried 3 | . 3 1 2 2 Average Carried . | . . 1 1 . Final Capacity 8 | 8 5 5 5 5 Final Carried 2 | . 1 1 2 . Class Distribution -------------------- 61% | Mutant 38% | Scavenger-Mutant Dominant Class ---------------- Mutant | -10/Materials Scavenger-Mutant | -10/Mines Scavenger-Mutant | -9/Materials Mutant | -8/Materials Resources | -11 -10 -10 -9 -8 ----------- Run | Yrd Mat Min Mat Mat Matter Collected 497 | 173 210 14 20 80 Remotely . | . . . . . Salvage Created 612 | . 210 . 150 252 Parts 28 | . 14 . 4 10 Haulers Intercepted . | . . . . . Recyclers Shooed 3 | . 3 . . . Parts Field Recycled . | . . . . . Retrieved Matter . | . . . . . Parts Self-Destructed . | . . . . . Prevented . | . . . . . Kills | -11 -10 -10 -9 -8 ------- Run | Yrd Mat Min Mat Mat Combat Hostiles Destroyed 14 | . 7 . 2 5 Guns 9 | . 7 . . 2 Classes Destroyed 7 | . 3 . 3 1 Builder 1 | . . . 1 . Operator 1 | . . . 1 . Watcher 3 | . 1 . 1 1 Swarmer 3 | . 3 . . . Grunt 7 | . 4 . . 3 Brawler 1 | . . . . 1 Sentry 3 | . . . 2 1 Best Kill Streak 5 | . 3 . 5 4 Combat Bots Only 4 | . 3 . 1 4 Max Kills in Single Turn 1 | . 1 . 1 1 Gunslinging . | . . . . . Exploded . | . . . . . Melee . | . . . . . Uniques/NPCs Destroyed . | . . . . . Combat | -11 -10 -10 -9 -8 -------- Run | Yrd Mat Min Mat Mat Hostile Shots Fired 156 | . 53 . 13 90 Missed 45 | . 13 . 4 28 Damage Taken 1598 | . 446 . 134 1018 Core 754 | . 120 . 73 561 Absorbed by Shields . | . . . . . Core Remaining (%) 77 | 100 . 52 81 . Volleys Fired 80 | . 77 . . 3 Largest 2 | . 1 . . 2 Hottest 50 | . 20 . . 50 Shots Fired 83 | . 77 . . 6 Gun 83 | . 77 . . 6 Cannon . | . . . . . Launcher . | . . . . . Special . | . . . . . Kinetic 83 | . 77 . . 6 Thermal . | . . . . . Explosive . | . . . . . Electromagnetic . | . . . . . Robot Hit Streak 12 | . 12 . . 7 Robot Miss Streak 5 | . 5 . . . Penetration Max . | . . . . . Secondary Targets . | . . . . . Shots Hit Robots 72 | . 47 . 10 15 Core Hits 23 | . 19 . . 4 Critical Kills . | . . . . . Critical Parts Destroyed 2 | . . . 1 1 Critical Strikes 2 | . . . 1 1 Smash 2 | . . . 1 1 Melee Attacks 36 | . . . 13 23 Impact 36 | . . . 13 23 Slashing . | . . . . . Piercing . | . . . . . Sneak Attacks 1 | . . . 1 . Combat Hostiles . | . . . . . Follow-up Attacks . | . . . . . Damage Inflicted 1178 | . 378 . 369 431 Guns 479 | . 378 . . 101 Cannons . | . . . . . Explosions . | . . . . . Melee 699 | . . . 369 330 Ramming . | . . . . . Kinetic 479 | . 378 . . 101 Thermal . | . . . . . Explosive . | . . . . . Electromagnetic . | . . . . . Impact 699 | . . . 369 330 Slashing . | . . . . . Piercing . | . . . . . Highest Corruption 3 | . . . . 3 Average Corruption 3 | . . . . 3 Corruption Purged . | . . . . . Corruption Blocked . | . . . . . Overload Shots . | . . . . . Overflow Damage 227 | . . . 183 44 Projectiles . | . . . . . Explosions . | . . . . . Melee 227 | . . . 183 44 Knockbacks 4 | . . . 2 2 Impact 4 | . . . 2 2 Kinetic . | . . . . . Secondary . | . . . . . Self-Inflicted Damage . | . . . . . Shots . | . . . . . Rammed . | . . . . . Targets Rammed . | . . . . . Kicked . | . . . . . Crushed . | . . . . . Highest Temperature 55 | . 27 . 8 55 Average Temperature 7 | . 4 . 8 24 Received Heat Transfer 753 | . 186 . 63 504 Siege Activations . | . . . . . Robots Corrupted . | . . . . . Combat Hostiles . | . . . . . Parts Fried 18 | . . . 9 9 Impact Corruptions 13 | . . . 9 4 Robots Melted . | . . . . . Combat Hostiles . | . . . . . Parts Melted . | . . . . . Heat Transferred . | . . . . . Parts Sabotaged . | . . . . . Parts Stolen . | . . . . . Parts Stripped . | . . . . . Power Chain Reactions . | . . . . . Alert | -11 -10 -10 -9 -8 ------- Run | Yrd Mat Min Mat Mat Peak Influence 236 | . 157 61 181 236 Initial 76 | . . 61 23 76 Average 97 | . 90 61 114 133 Maximum Alert Level 1 | . . . . 1 Low Security (%) 98 | 100 100 100 100 92 Level 1 1 | . . . . 7 Level 2 . | . . . . . Level 3 . | . . . . . Level 4 . | . . . . . Level 5 . | . . . . . High Security . | . . . . . Max Security . | . . . . . Squads Dispatched 4 | . 1 . 1 2 Investigation . | . . . . . Extermination . | . . . . . Reinforcement 4 | . 1 . 1 2 Assault . | . . . . . Garrison . | . . . . . Intercept . | . . . . . Searches Triggered . | . . . . . Construction Impeded . | . . . . . Haulers Reinforced . | . . . . . Active Scanning Responses . | . . . . . Cargo Convoy Interrupts . | . . . . . Stealth | -11 -10 -10 -9 -8 --------- Run | Yrd Mat Min Mat Mat Distress Signals . | . . . . . Communications Jammed . | . . . . . Distress Signals . | . . . . . Times Spotted 33 | . 10 . 6 17 Peak Tracking Total 10 | . 5 . 2 10 Tactical Retreats . | . . . . . Traps | -11 -10 -10 -9 -8 ------- Run | Yrd Mat Min Mat Mat Traps Triggered 1 | . . . . 1 Indirectly . | . . . . . Trap Hack Attempts . | . . . . . Triggered . | . . . . . Disarmed . | . . . . . Reprogrammed . | . . . . . Reused . | . . . . . Traps Extracted . | . . . . . Installed . | . . . . . Triggered . | . . . . . Machines | -11 -10 -10 -9 -8 ---------- Run | Yrd Mat Min Mat Mat Machines Disabled 1 | . . . 1 . Max in Single Turn 1 | . . . 1 . Machines Repaired . | . . . . . Machines Dismantled . | . . . . . Machines Sabotaged . | . . . . . Overloaded Fab Kills . | . . . . . Hacking | -11 -10 -10 -9 -8 --------- Run | Yrd Mat Min Mat Mat Machines Accessed 3 | . 1 . 1 1 Terminals 2 | . . . 1 1 Fabricators . | . . . . . Repair Stations . | . . . . . Recycling Units 1 | . 1 . . . Scanalyzers . | . . . . . Garrison Access . | . . . . . Total Hacks 7 | . 1 . 3 3 Successful 3 | . 1 . 1 1 Failed 4 | . . . 2 2 Catastrophic 1 | . . . . 1 Database Lockouts . | . . . . . Manual . | . . . . . Terminals 6 | . . . 3 3 Fabricators . | . . . . . Repair Stations . | . . . . . Recycling Units 1 | . 1 . . . Scanalyzers . | . . . . . Garrison Access . | . . . . . Terminal Hacks 2 | . . . 1 1 Registered Components 1 | . . . . 1 Zone Layout 1 | . . . 1 . Fabricator Hacks . | . . . . . Repair Station Hacks . | . . . . . Recycling Unit Hacks 1 | . 1 . . . Report Inventory 1 | . 1 . . . Scanalyzer . | . . . . . Garrison Access Hacks . | . . . . . Unauthorized Hacks . | . . . . . Terminals . | . . . . . Fabricators . | . . . . . Repair Stations . | . . . . . Recycling Units . | . . . . . Scanalyzers . | . . . . . Garrison Access . | . . . . . Data Cores Recovered . | . . . . . Used . | . . . . . Hacking Detections . | . . . . . Full Trace Events . | . . . . . Feedback Events . | . . . . . Feedback Blocked . | . . . . . Robot Schematics Acquired . | . . . . . Robots Built . | . . . . . Authchips . | . . . . . Time . | . . . . . Total Robot Build Rating . | . . . . . Part Schematics Acquired . | . . . . . Parts Built . | . . . . . Authchips . | . . . . . Time . | . . . . . Total Part Build Rating . | . . . . . Parts Repaired . | . . . . . Time . | . . . . . Parts Recycled . | . . . . . Recycled Matter . | . . . . . Retrieved Matter . | . . . . . Retrieved Components . | . . . . . Parts Scanalyzed . | . . . . . Part Schematics Acquired . | . . . . . Parts Damaged . | . . . . . Bothacking | -11 -10 -10 -9 -8 ------------ Run | Yrd Mat Min Mat Mat Used RIF Installer . | . . . . . Robots Hacked . | . . . . . Non-combat . | . . . . . Combat . | . . . . . Robot Hacks Applied . | . . . . . Relay Couplers Released . | . . . . . Fabnet Peak Effective % . | . . . . . Robots Rewired . | . . . . . Allies Hacked . | . . . . . Hacks Repelled . | . . . . . Allies | -11 -10 -10 -9 -8 -------- Run | Yrd Mat Min Mat Mat Total Allies 3 | . . 3 . . Largest Group 3 | . . 3 3 . Highest-Rated Group 40 | . . 40 40 . Highest-Rated Ally 16 | . . 16 16 . Total Orders . | . . . . . Ally Attacks 8 | . . . 8 . Total Damage 81 | . . . 81 . Kills . | . . . . . Allies Corrupted . | . . . . . Allies Melted . | . . . . . Intel | -11 -10 -10 -9 -8 ------- Run | Yrd Mat Min Mat Mat Robot Analysis Total . | . . . . . Derelict Logs Recovered 1 | . . 1 . . Drone Launches . | . . . . . Drone Recoveries . | . . . . . Exploration | -11 -10 -10 -9 -8 ------------- Run | Yrd Mat Min Mat Mat Turns Passed 811 | 53 303 78 179 198 Spaces Moved 994 | 40 274 159 258 263 Core 115 | 10 . . . 105 Treads . | . . . . . Legs 73 | 30 43 . . . Wheels . | . . . . . Hover . | . . . . . Flight 806 | . 231 159 258 158 Fastest Speed 37 | 50 37 37 37 40 Average Speed 51 | 115 53 37 54 44 Slowest Speed 210 | 150 210 37 120 120 Overloaded Moves . | . . . . . Propulsion Burnouts . | . . . . . Robots Hopped . | . . . . . Cave-ins Triggered . | . . . . . Exploration Rate (%) 23 | 3 31 37 20 26 Regions Visited 4 Branch Regions 1 Pre-discovered Areas . | . . . . . Known Exits Taken 3 | . 1 1 1 . Unknown Exits Taken 1 | 1 . . . . Scrap Searched 1 | . . 1 . . Spaces Dug 2 | . . . . 2 Terrain Destroyed 2 | . . . . 2 Melee 2 | . . . . 2 Projectile . | . . . . . AOE . | . . . . . Terrain Rammed . | . . . . . Walls Destroyed . | . . . . . Machines Disabled . | . . . . . Actions | -11 -10 -10 -9 -8 --------- Run | Yrd Mat Min Mat Mat Total 1167 | 44 368 177 276 302 Wait 21 | . 2 19 . . Move 990 | 39 273 158 257 263 Hop . | . . . . . Pick Up . | . . . . . Fast Attach 23 | 5 7 . 2 9 Attach 1 | . . . . 1 Detach 7 | . 4 . 2 1 Swap 2 | . 1 . 1 . Drop 7 | . 4 . 1 2 Fire 80 | . 77 . . 3 Melee 36 | . . . 13 23 Ram . | . . . . . Kick . | . . . . . Crush . | . . . . . Escape Stasis . | . . . . . Rewire . | . . . . . Trap . | . . . . . Miscellaneous . | . . . . . Route ------- -11/Scrapyard -10/Materials -10/Mines -9/Materials -8/Materials History --------- Turn | Location | Event 11 | -11/Scrapyard | Discovered new exit (range 15) 54 | -11/Scrapyard | Entered Materials 326 | -10/Materials | Discovered new exit (range 11) 347 | -10/Materials | Identified exit to Mines 357 | -10/Materials | Entered Mines 388 | -10/Mines | Assisted by bots powering up and referring to "LRC-V3" 392 | -10/Mines | Learned Materials stockpile data 402 | -10/Mines | Discovered new exit (range 13) 427 | -10/Mines | Identified exit to Materials 433 | -10/Mines | Received a Rocket Launcher from a helpful Derelict 435 | -10/Mines | Entered Materials 435 | -9/Materials | Accompanied by 3 allies 435 | -9/Materials | Evolved 2 slots: Propulsion x1, Utility x1 524 | -9/Materials | Build established: Scavenger-Mutant 527 | -9/Materials | Discovered new exit (range 16) 614 | -9/Materials | Identified exit to Materials 614 | -9/Materials | Entered another Materials area 614 | -8/Materials | Evolved 2 slots: Utility x2 790 | -8/Materials | Core integrity fell below 50% 804 | -8/Materials | Core integrity fell below 20% 812 | -8/Materials | Destroyed by Y-45 Defender with Heavy Assault Rifle Last Messages --------------- 00792_ G-47 Trooper suffers critical hit (Smash). 00792_ Destroyed Aluminum Leg. 00792_ G-47 Trooper system corrupted by crushing effect. 00793_ G-47 Trooper system terminally corrupted. 00793_ Particle Gun fried. 00793_ Imp. Heat Sink fried. 00799_ Flail destroyed. 00799_ Signal Interpreter destroyed. 00799_ System corrupted by crushing effect (+3). 00801_ Acquired Minigun. 00804_ K-01 Serf collects debris. 00804_ Adv. Weight Redist. System destroyed. 00804_ B-36 Bruiser destroyed. 00807_ K-01 Serf collects debris. 00807_ G-47 Trooper destroyed. 00807_ K-01 Serf collects debris. 00808_ R-06 Scavenger collects Corrupted Aluminum Leg. 00810_ Critical hit (Burn: +37). 00810_ K-01 Serf collects debris. 00811_ R-06 Scavenger collects Rnf. Ion Engine. Map ----- +----------------------------------------------------+ | ?????????????????????????????????????????????????? | | ?????????????????????????????????????????????????? | | ?????????????????????????????????????????????????? | | ?????????????????????????????????????????????????? | | ?????????????????????????????????????????????????? | | ?????????????????????????????????????????????????? | | ?????????????????????????????????????????????????? | | ?????????????????????????????????????????????????? | | ?????????????????????????????????????????????????? | | ?????????????????????????????????????????????????? | | ?????????????????????????????????????????????????? | | ?????????????????????????????????????????????????? | | ?????????????????????????????????????????????????? | | ?????????????????????????????????????????????????? | | ?????????????????????????????????????????????????? | | ?????????????????????????????????????????????????? | | ????????"""??????????????????????????????????????? | | ????????"""??????????????????????????????????????? | | ????????"""??????????????????????????????????????? | | ?????????????????????????????????????????????????? | | ???????????????????????????????????"""???????????? | | ???????????????????????????????????"""???????????? | | ?????????????????????########??????"""???????????? | | ?????????????????????# #????????????????????? | | ?????????????????????# g[[[#????????????????????? | | ?????????????????????# !%@[ #???????"T"??????????? | | ?????????????????????# g=[ #???????"""??????????? | | ?????????????????????#g Yg/ ###??????????????????? | | ?????????????????????# krk! ; #???##+###?????????? | | ????? ##########+######r########## #?????????? | | ???? #?????????? | | ???? o #?????????? | | ??????""" """ """ #?????????? | | ??????""" """ """ ### #?????????? | | # ???""" """ ** """ #????##########???? | | # """ """ *! """ #????# #???? | | # #????# ! #???? | | #????# #???? | | ######## #????# #???? | | ######## ###### #???? | | ??####+### ###### # #^ # #???? | | ?????????# ??????# #"S + + ! #???? | | ???"""""?# ???????#+#""" # ^ ^ ""# !#???? | | ???""T""?#??????????# "" !# Y"# #???? | | ????????????????????# # ""###+######???? | | ????????????????????# """ # [ #?#?????? | | ????????????????????# """ + % # #? | | ????????????????????# """ # ! #? | | ????????????????????# ## #####/## # #? | | ????"""?????????????# """ ## #% # #? ###? | +----------------------------------------------------+ Best States ------------- Heat Dissipation 31 Energy Generation 14 Energy Capacity 250 Matter Stores 300 Matter Capacity 300 Sight Range 20 Terrain Scan Density 10 Additional Mass Support 9 Evasion (%) 62 Melee Accuracy 5 Item Schematics ----------------- None Robot Schematics ------------------ None Fabricated ------------ Nothing Alien Tech Used ----------------- None Achievements -------------- None Challenges ------------ None Game ------ Seed RecoilConcussiveNanosword Manual? 0 Play Time 00:22:19 Cumulative 9.5 hours Start 2024.04.01 @ 18:12:38 End 2024.04.01 @ 18:38:00 Sessions 1 Manual Loads 0 Difficulty Rogue Special Mode None Game No. 25 Rogue 23 Adventurer 2 Explorer 0 Win Type - Total 0 Types 0/0/0/0/0/0/0/0/0 Lore% 14 Gallery% 15 Achievement% 16 Wizard Run 0 Options --------- Layout 0 ASCII 0 Keyboard 1 Movement Arrows Keybinds 0 Fullscreen 2 Font 18/SmallcapsGlow Map View 76x50 Zoom Use 0% Tactical HUD 1 Map Filters NONE Filters NONE Steam 1 RUN: 87386927-ea5a-45bd-9bb0-70cc903681f6